fUSD/lending_fUSD_20250301
["ID","MTS","AMOUNT","RATE_DAILY","PERIOD"]
[354936895,1740833451339,-500.0,0.00027397,2]
[354936896,1740833451348,-779.76,0.00027397,2]
[354936897,1740833451358,-295.28214073,0.00027397,2]
[354936898,1740833451367,-2920.09,0.00027397,2]
[354936899,1740833451377,-4291.89,0.00027397,2]
[354936900,1740833451386,-520.20817661,0.00027397,2]
[354936901,1740833451396,-1259.73,0.00027397,2]
[354936902,1740833451406,-2896.56,0.00027397,2]
[354936903,1740833451415,-540.37,0.00027397,2]
[354936904,1740833451424,-1477.74,0.00027397,2]
[354936905,1740833451434,-500.0,0.00027397,2]
[354936906,1740833451443,-37260.43,0.00027397,2]
[354936907,1740833451453,-2927.0,0.00027397,2]
[354936908,1740833451462,-789.12,0.00027397,2]
[354936909,1740833451472,-500.0,0.00027397,2]
[354936910,1740833451483,-500.0,0.00027397,2]
[354936911,1740833451493,-1802.83,0.00027397,2]
[354936912,1740833451503,-2936.81,0.00027397,2]
[354936913,1740833451512,-2506.38,0.00027397,2]
[354936914,1740833451521,-2521.58,0.00027397,2]
[354936915,1740833451531,-500.0,0.00027397,2]
[354936916,1740833451541,-500.0,0.00027397,2]
[354936917,1740833451550,-500.0,0.00027397,2]
[354936918,1740833451559,-1142.21,0.00027397,2]
[354936919,1740833451569,-500.0,0.00027397,2]
[354936920,1740833451578,-709.77,0.00027397,2]
[354936921,1740833451588,-904.3,0.00027397,2]
[354936922,1740833451599,-1972.74,0.00027397,2]
[354936923,1740833451608,-500.0,0.00027397,2]
[354936924,1740833451617,-300.0,0.00027397,2]
[354936925,1740833451627,-727.98,0.00027397,2]
[354936926,1740833451637,-500.0,0.00027397,2]
[354936927,1740833451646,-513.43130668,0.00027397,2]
[354936928,1740833451655,-500.0,0.00027397,2]
[354936929,1740833451665,-959.84,0.00027397,2]
[354936930,1740833451675,-1007.59,0.00027397,2]
[354936931,1740833451684,-3138.05,0.00027397,2]
[354936932,1740833451693,-1525.29,0.00027397,2]
[354936933,1740833451703,-500.0,0.00027397,2]
[354936934,1740833451712,-351.11163334,0.00027397,2]
[354936935,1740833451722,-500.0,0.00027397,2]
[354936936,1740833451731,-1175.31,0.00027397,2]
[354936937,1740833451741,-649.89,0.00027397,2]
[354936938,1740833451750,-6469.94,0.00027397,2]
[354936939,1740833451759,-775.13,0.00027397,2]
[354936940,1740833451769,-1532.71,0.00027397,2]
[354936941,1740833451778,-500.0,0.00027397,2]
[354936942,1740833451787,-522.11144687,0.00027397,2]
[354936943,1740833451799,-661.68,0.00027397,2]
[354936944,1740833451808,-684.73,0.00027397,2]
[354936945,1740833451817,-2032.64,0.00027397,2]
[354936946,1740833451827,-845.99,0.00027397,2]
[354936947,1740833451836,-1705.91,0.00027397,2]
[354936948,1740833451846,-500.0,0.00027397,2]
[354936949,1740833451855,-515.09957112,0.00027397,2]
[354936950,1740833451865,-1514.1,0.00027397,2]
[354936951,1740833451875,-502.53265222,0.00027397,2]
[354936952,1740833451884,-819.66,0.00027397,2]
[354936953,1740833451894,-3006.53,0.00027397,2]
[354936954,1740833451904,-1432.97,0.00027397,2]
[354936955,1740833451914,-778.53,0.00027397,2]
[354936956,1740833451923,-1386.41,0.00027397,2]
[354936957,1740833451933,-500.0,0.00027397,2]
[354936958,1740833451943,-1216.48,0.00027397,2]
[354936959,1740833451952,-621.33,0.00027397,2]
[354936960,1740833451962,-956.65,0.00027397,2]
[354936961,1740833451972,-704.65,0.00027397,2]
[354936962,1740833451982,-2292.14,0.00027397,2]
[354936963,1740833451992,-514.41478844,0.00027397,2]
[354936964,1740833452002,-1528.72,0.00027397,2]
[354936965,1740833452012,-549.9,0.00027397,2]
[354936966,1740833452022,-923.69,0.00027397,2]
[354936967,1740833452033,-500.0,0.00027397,2]
[354936968,1740833452046,-512.61748064,0.00027397,2]
[354936969,1740833452055,-500.0,0.00027397,2]
[354936970,1740833452066,-852.19,0.00027397,2]
[354936971,1740833452076,-500.0,0.00027397,2]
[354936972,1740833452086,-500.0,0.00027397,2]
[354936973,1740833452096,-500.0,0.00027397,2]
[354936974,1740833452105,-516.8812839,0.00027397,2]
[354936975,1740833452272,-500.0,0.00027397,2]
[354936976,1740833452299,-1096.88,0.00027397,2]
[354936977,1740833452308,-500.0,0.00027397,2]
[354936978,1740833452318,-500.0,0.00027397,2]
[354936979,1740833452328,-2045.49139458,0.00027397,30]
[354936980,1740833452338,-8955.65,0.00027397,2]
[354936981,1740833452348,-514.8738058,0.00027397,2]
[354936982,1740833452357,-500.0,0.00027397,2]
[354936983,1740833452367,-566.83547653,0.00027397,2]
[354936984,1740833452376,-513.25717254,0.00027397,2]
[354936985,1740833452386,-500.0,0.00027397,2]
[354936986,1740833452396,-500.0,0.00027397,2]
[354936987,1740833452405,-500.0,0.00027397,2]
[354936988,1740833452415,-500.0,0.00027397,2]
[354936989,1740833452424,-504.36739404,0.00027397,2]
[354936990,1740833452434,-500.0,0.00027397,2]
[354936991,1740833452444,-2016.42,0.00027397,2]
[354936992,1740833452453,-1941.51,0.00027397,2]
[354936993,1740833452463,-813.99,0.00027397,2]
[354936994,1740833452470,-500.0,0.00027397,2]
[354936995,1740833452477,-500.0,0.00027397,2]
[354936996,1740833452484,-500.0,0.00027397,2]
[354936997,1740833452491,-725.62,0.00027397,2]
[354936998,1740833452497,-223.72747893,0.00027397,2]
[354936999,1740833452504,-500.0,0.00027397,2]
[354937000,1740833452511,-429.03318761,0.00027397,2]
[354937001,1740833452518,-1281.91,0.00027397,2]
[354937002,1740833452525,-561.04270112,0.00027397,2]
[354937003,1740833452533,-2213.96,0.00027397,2]
[354937004,1740833452541,-500.0,0.00027397,2]
[354937005,1740833452548,-2170.98,0.00027397,2]
[354937006,1740833452555,-735.4,0.00027397,2]
[354937007,1740833452561,-500.0,0.00027397,2]
[354937008,1740833452569,-500.0,0.00027397,2]
[354937009,1740833452576,-500.0,0.00027397,2]
[354937010,1740833452585,-500.0,0.00027397,2]
[354937011,1740833452591,-500.0,0.00027397,2]
[354937012,1740833452599,-1018.75,0.00027397,2]
[354937013,1740833452606,-1638.13,0.00027397,2]
[354937014,1740833452613,-586.73,0.00027397,2]
[354937015,1740833452620,-503.27947961,0.00027397,2]
[354937016,1740833452627,-510.77758524,0.00027397,2]
[354937017,1740833452633,-2449.64,0.00027397,2]
[354937018,1740833452643,-1120.89,0.00027397,2]
[354937019,1740833452660,-500.0,0.00027397,2]
[354937020,1740833452667,-772.18,0.00027397,2]
[354937021,1740833452674,-562.58601356,0.00027397,2]
[354937022,1740833452681,-7854.81,0.00027397,2]
[354937023,1740833452688,-1314.11,0.00027397,2]
[354937024,1740833452695,-500.0,0.00027397,2]
[354937025,1740833452702,-504.8308304,0.00027397,2]
[354937026,1740833452710,-500.0,0.00027397,2]
[354937027,1740833452716,-500.0,0.00027397,2]
[354937028,1740833452723,-500.0,0.00027397,2]
[354937029,1740833452730,-2274.43,0.00027397,2]
[354937030,1740833452738,-500.0,0.00027397,2]
[354937031,1740833452744,-2032.55,0.00027397,2]
[354937032,1740833452752,-500.0,0.00027397,2]
[354937033,1740833452759,-2383.16,0.00027397,2]
[354937034,1740833452766,-500.0,0.00027397,2]
[354937035,1740833452773,-500.0,0.00027397,2]
[354937036,1740833452781,-500.0,0.00027397,2]
[354937037,1740833452789,-680.03,0.00027397,2]
[354937038,1740833452796,-500.0,0.00027397,2]
[354937039,1740833452802,-500.0,0.00027397,2]
[354937040,1740833452809,-26948.53,0.00027397,2]
[354937041,1740833452815,-819.06,0.00027397,2]
[354937042,1740833452823,-821.36,0.00027397,2]
[354937043,1740833452830,-500.0,0.00027397,2]
[354937044,1740833452838,-731.17,0.00027397,2]
[354937045,1740833452845,-500.0,0.00027397,2]
[354937046,1740833452853,-1087.22,0.00027397,2]
[354937047,1740833452860,-500.0,0.00027397,2]
[354937048,1740833452867,-500.0,0.00027397,2]
[354937049,1740833452873,-1437.69,0.00027397,2]
[354937050,1740833452881,-2351.91,0.00027397,2]
[354937051,1740833452888,-942.9,0.00027397,2]
[354937052,1740833452894,-364.97296151,0.00027397,2]
[354937053,1740833452901,-500.0,0.00027397,2]
[354937054,1740833452907,-1871.38,0.00027397,2]
[354937055,1740833452914,-500.0,0.00027397,2]
[354937056,1740833452921,-500.0,0.00027397,2]
[354937057,1740833452929,-733.49,0.00027397,2]
[354937058,1740833452937,-500.0,0.00027397,2]
[354937059,1740833452944,-618.64,0.00027397,2]
[354937060,1740833452951,-720.36,0.00027397,2]
[354937061,1740833452959,-500.0,0.00027397,2]
[354937062,1740833452966,-13748.82,0.00027397,2]
[354937063,1740833452974,-1027.58,0.00027397,2]
[354937064,1740833452981,-1295.06,0.00027397,2]
[354937065,1740833452988,-2112.95,0.00027397,2]
[354937066,1740833452996,-500.0,0.00027397,2]
[354937067,1740833453005,-519.35700246,0.00027397,2]
[354937068,1740833453015,-1419.67,0.00027397,2]
[354937069,1740833453023,-500.0,0.00027397,2]
[354937070,1740833453035,-719.57,0.00027397,2]
[354937071,1740833453043,-4122.6,0.00027397,2]
[354937072,1740833453052,-500.0,0.00027397,2]
[354937073,1740833453060,-500.0,0.00027397,2]
[354937074,1740833453068,-601.27,0.00027397,120]
[354937075,1740833453075,-2122.69,0.00027397,2]
[354937076,1740833453084,-500.0,0.00027397,2]
[354937077,1740833453093,-500.0,0.00027397,2]
[354937078,1740833453100,-500.0,0.00027397,2]
[354937079,1740833453108,-500.0,0.00027397,2]
[354937080,1740833453115,-606.84,0.00027397,2]
[354937081,1740833453123,-1502.08,0.00027397,2]
[354937082,1740833453132,-623.01,0.00027397,2]
[354937083,1740833453139,-500.0,0.00027397,2]
[354937084,1740833453146,-500.0,0.00027397,2]
[354937085,1740833453153,-500.0,0.00027397,2]
[354937086,1740833453161,-1568.63,0.00027397,2]
[354937087,1740833453168,-500.0,0.00027397,2]
[354937088,1740833453177,-500.0,0.00027397,2]
[354937089,1740833453186,-511.49390128,0.00027397,2]
[354937090,1740833453194,-500.0,0.00027397,2]
[354937091,1740833453201,-2130.49,0.00027397,2]
[354937092,1740833453209,-999.1,0.00027397,2]
[354937093,1740833453217,-3010.833224,0.000275,2]
[354937094,1740833453224,-429.87895021,0.00027571,2]
[354937095,1740833453231,-671.02,0.0002767,2]
[354937096,1740833453240,-500.0,0.0002767,2]
[354937097,1740833453248,-500.0,0.0002767,2]
[354937098,1740833453257,-500.0,0.0002767,2]
[354937099,1740833453264,-500.0,0.0002767,2]
[354937100,1740833453270,-100000.0,0.00027671,8]
[354937101,1740833453278,-500.0,0.00027671,2]
[354937102,1740833453285,-410.68738294,0.00027671,2]
[354937103,1740833453293,-500.0,0.00027671,2]
[354937104,1740833453300,-500.0,0.00027671,2]
[354937105,1740833453308,-500.0,0.00027671,2]
[354937106,1740833453315,-500.0,0.00027671,2]
[354937107,1740833453322,-508.55435715,0.00027671,2]
[354937108,1740833453331,-500.0,0.00027671,2]
[354937109,1740833453339,-511.36302126,0.00027671,2]
[354937110,1740833453346,-468.79017806,0.00027671,2]
[354937111,1740833453353,-510.6765427,0.00027671,2]
[354937112,1740833453360,-500.0,0.00027671,2]
[354937113,1740833453367,-513.23824414,0.00027671,2]
[354937114,1740833453375,-500.0,0.00027671,2]
[354937115,1740833453383,-507.55076765,0.00027671,2]
[354937116,1740833453390,-516.17643635,0.00027671,2]
[354937117,1740833453397,-500.0,0.00027671,2]
[354937118,1740833453404,-505.99100031,0.00027671,2]
[354937119,1740833453411,-521.36343777,0.00027671,2]
[354937120,1740833453419,-506.00129804,0.00027671,2]
[354937121,1740833453425,-505.1224332,0.00027671,2]
[354937122,1740833453432,-3425.400033,0.00027671,2]
[354937123,1740833453439,-500.0,0.00027671,2]
[354937124,1740833453447,-500.0,0.00027671,2]
[354937125,1740833453454,-500.0,0.00027671,2]
[354937126,1740833453462,-4441.264064,0.00027671,2]
[354937127,1740833453468,-500.0,0.00027671,2]
[354937128,1740833453476,-578.96541534,0.00027671,2]
[354937129,1740833453483,-1447.93,0.00027671,2]
[354937130,1740833453490,-150.369306,0.00027671,2]
[354937131,1740833453497,-982.1,0.00027671,2]
[354937132,1740833453503,-500.0,0.00027671,2]
[354937133,1740833453511,-820.82,0.00027671,2]
[354937134,1740833453518,-522.17009015,0.00027671,2]
[354937135,1740833453525,-1053.73,0.00027671,2]
[354937136,1740833453534,-228.32292035,0.00027671,2]
[354937137,1740833453541,-500.0,0.00027671,2]
[354937138,1740833453548,-500.0,0.00027671,2]
[354937139,1740833453555,-500.0,0.00027671,2]
[354937140,1740833453564,-500.0,0.00027671,2]
[354937141,1740833453572,-500.0,0.00027671,2]
[354937142,1740833453579,-500.0,0.00027671,2]
[354937143,1740833453586,-500.0,0.00027671,2]
[354937144,1740833453593,-534.07170634,0.00027671,2]
[354937145,1740833453601,-500.0,0.00027671,2]
[354937146,1740833453607,-724.24,0.00027671,2]
[354937147,1740833453616,-500.0,0.00027671,2]
[354937148,1740833453626,-500.0,0.00027671,2]
[354937149,1740833453635,-500.0,0.00027671,2]
[354937150,1740833453644,-500.0,0.00027671,2]
[354937151,1740833453651,-500.0,0.00027671,2]
[354937152,1740833453659,-500.0,0.00027671,2]
[354937153,1740833453666,-500.0,0.00027671,2]
[354937154,1740833453673,-500.0,0.00027671,2]
[354937155,1740833453680,-500.0,0.00027671,2]
[354937156,1740833453688,-500.0,0.00027671,2]
[354937157,1740833453696,-557.85,0.00027671,2]
[354937158,1740833453703,-500.0,0.00027671,2]
[354937159,1740833453710,-500.0,0.00027671,2]
[354937160,1740833453718,-500.0,0.00027671,2]
[354937161,1740833453727,-1000.0,0.00027671,2]
[354937162,1740833453734,-1185.82,0.00027671,2]
[354937163,1740833453742,-500.0,0.00027671,2]
[354937164,1740833453752,-500.0,0.00027671,2]
[354937165,1740833453761,-500.0,0.00027671,2]
[354937166,1740833453776,-608.6543707,0.00027671,2]
[354937167,1740833453787,-500.0,0.00027671,2]
[354937168,1740833453796,-500.0,0.00027671,2]
[354937169,1740833453805,-506.84424611,0.00027671,2]
[354937170,1740833453816,-500.0,0.00027671,2]
[354937171,1740833453825,-500.0,0.00027671,2]
[354937172,1740833453834,-500.0,0.00027671,2]
[354937173,1740833453844,-500.0,0.00027671,2]
[354937174,1740833453854,-505.24064334,0.00027671,2]
[354937175,1740833453863,-500.0,0.00027671,2]
[354937176,1740833453873,-500.0,0.00027671,2]
[354937177,1740833453882,-500.0,0.00027671,2]
[354937178,1740833453892,-500.0,0.00027671,2]
[354937179,1740833453902,-500.0,0.00027671,2]
[354937180,1740833453911,-1031.83,0.00027671,2]
[354937181,1740833453920,-500.0,0.00027671,2]
[354937182,1740833453930,-500.0,0.00027671,2]
[354937183,1740833453939,-1151.63,0.00027671,2]
[354937184,1740833453948,-500.0,0.00027671,2]
[354937185,1740833453959,-500.0,0.00027671,2]
[354937186,1740833453969,-500.0,0.00027671,2]
[354937187,1740833453978,-500.0,0.00027671,2]
[354937188,1740833453988,-500.0,0.00027671,2]
[354937189,1740833453999,-500.0,0.00027671,2]
[354937190,1740833454163,-508.47932847,0.00027671,2]
[354937191,1740833454175,-500.0,0.00027671,2]
[354937192,1740833454185,-500.0,0.00027671,2]
[354937193,1740833454194,-500.0,0.00027671,2]
[354937194,1740833454204,-509.88257016,0.00027671,2]
[354937195,1740833454214,-500.0,0.00027671,2]
[354937196,1740833454224,-500.0,0.00027671,2]
[354937197,1740833454234,-500.0,0.00027671,2]
[354937198,1740833454244,-500.0,0.00027671,2]
[354937199,1740833454254,-505.92967807,0.00027671,2]
[354937200,1740833454264,-500.0,0.00027671,2]
[354937201,1740833454273,-500.0,0.00027671,2]
[354937202,1740833454283,-1063.67,0.00027671,2]
[354937203,1740833454292,-500.0,0.00027671,2]
[354937204,1740833454302,-500.0,0.00027671,2]
[354937205,1740833454312,-500.0,0.00027671,2]
[354937206,1740833454321,-500.0,0.00027671,2]
[354937207,1740833454331,-708.76,0.00027671,2]
[354937208,1740833454340,-507.47326758,0.00027671,2]
[354937209,1740833454350,-925.46,0.00027671,2]
[354937210,1740833454359,-500.0,0.00027671,2]
[354937211,1740833454369,-500.0,0.00027671,2]
[354937212,1740833454378,-500.0,0.00027671,2]
[354937213,1740833454387,-500.0,0.00027671,2]
[354937214,1740833454397,-500.0,0.00027671,2]
[354937215,1740833454406,-414.78155341,0.00027671,2]
[354937216,1740833454416,-500.0,0.00027671,2]
[354937217,1740833454425,-500.0,0.00027671,2]
[354937218,1740833454434,-510.51073649,0.00027671,2]
[354937219,1740833454444,-500.0,0.00027671,2]
[354937220,1740833454454,-500.0,0.00027671,2]
[354937221,1740833454465,-500.0,0.00027671,2]
[354937222,1740833454474,-1191.51,0.00027671,2]
[354937223,1740833454484,-500.0,0.00027671,2]
[354937224,1740833454494,-500.0,0.00027671,2]
[354937225,1740833454503,-500.0,0.00027671,2]
[354937226,1740833454513,-500.0,0.00027671,2]
[354937227,1740833454522,-500.0,0.00027671,2]
[354937228,1740833454533,-500.0,0.00027671,2]
[354937229,1740833454544,-507.60101357,0.00027671,2]
[354937230,1740833454554,-500.0,0.00027671,2]
[354937231,1740833454564,-507.79591579,0.00027671,2]
[354937232,1740833454579,-899.52,0.00027671,2]
[354937233,1740833454589,-500.0,0.00027671,2]
[354937234,1740833454599,-500.0,0.00027671,2]
[354937235,1740833454608,-500.0,0.00027671,2]
[354937236,1740833454618,-500.0,0.00027671,2]
[354937237,1740833454628,-500.0,0.00027671,2]
[354937238,1740833454637,-500.0,0.00027671,2]
[354937239,1740833454647,-500.0,0.00027671,2]
[354937240,1740833454656,-500.0,0.00027671,2]
[354937241,1740833454665,-500.0,0.00027671,2]
[354937242,1740833454675,-500.0,0.00027671,2]
[354937243,1740833454685,-500.0,0.00027671,2]
[354937244,1740833454694,-509.12539989,0.00027671,2]
[354937245,1740833454704,-500.0,0.00027671,2]
[354937246,1740833454714,-500.0,0.00027671,2]
[354937247,1740833454723,-499.1946893,0.00027671,2]
[354937248,1740833454732,-500.0,0.00027671,2]
[354937249,1740833454742,-510.12786371,0.00027671,2]
[354937250,1740833454751,-500.0,0.00027671,2]
[354937251,1740833454761,-500.0,0.00027671,2]
[354937252,1740833454771,-500.0,0.00027671,2]
[354937253,1740833454780,-500.0,0.00027671,2]
[354937254,1740833454789,-500.0,0.00027671,2]
[354937255,1740833454799,-500.0,0.00027671,2]
[354937256,1740833454808,-500.0,0.00027671,2]
[354937257,1740833454818,-1250.45,0.00027671,2]
[354937258,1740833454827,-500.0,0.00027671,2]
[354937259,1740833454836,-500.0,0.00027671,2]
[354937260,1740833454846,-509.48596065,0.00027671,2]
[354937261,1740833454855,-500.0,0.00027671,2]
[354937262,1740833454864,-514.26130969,0.00027671,2]
[354937263,1740833454874,-500.0,0.00027671,2]
[354937264,1740833454883,-515.49182177,0.00027671,2]
[354937265,1740833454892,-500.0,0.00027671,2]
[354937266,1740833454902,-500.0,0.00027671,2]
[354937267,1740833454911,-500.0,0.00027671,2]
[354937268,1740833454920,-542.72316847,0.00027671,2]
[354937269,1740833454930,-500.0,0.00027671,2]
[354937270,1740833454940,-500.0,0.00027671,2]
[354937271,1740833454950,-500.0,0.00027671,2]
[354937272,1740833454960,-500.0,0.00027671,2]
[354937273,1740833454970,-1022.37,0.00027671,2]
[354937274,1740833454980,-521.57,0.00027671,2]
[354937275,1740833454989,-500.0,0.00027671,2]
[354937276,1740833454999,-500.0,0.00027671,2]
[354937277,1740833455009,-500.0,0.00027671,2]
[354937278,1740833455019,-509.82153811,0.00027671,2]
[354937279,1740833455030,-735.55,0.00027671,2]
[354937280,1740833455041,-1202.7,0.00027671,2]
[354937281,1740833455052,-500.0,0.00027671,2]
[354937282,1740833455061,-500.0,0.00027671,2]
[354937283,1740833455071,-500.0,0.00027671,2]
[354937284,1740833455083,-500.0,0.00027671,2]
[354937285,1740833455092,-500.0,0.00027671,2]
[354937286,1740833455102,-500.0,0.00027671,2]
[354937287,1740833455111,-1137.9,0.00027671,2]
[354937288,1740833455121,-500.0,0.00027671,2]
[354937289,1740833455130,-583.2,0.00027671,2]
[354937290,1740833455139,-1350.44,0.00027671,2]
[354937291,1740833455149,-500.0,0.00027671,2]
[354937292,1740833455159,-500.0,0.00027671,2]
[354937293,1740833455168,-970.16,0.00027671,2]
[354937294,1740833455178,-508.27667318,0.00027671,2]
[354937295,1740833455187,-500.0,0.00027671,2]
[354937296,1740833455197,-877.1,0.00027671,2]
[354937297,1740833455208,-500.0,0.00027671,2]
[354937298,1740833455218,-500.0,0.00027671,2]
[354937299,1740833455227,-500.0,0.00027671,2]
[354937300,1740833455237,-500.0,0.00027671,2]
[354937301,1740833455246,-987.39,0.00027671,2]
[354937302,1740833455256,-500.0,0.00027671,2]
[354937303,1740833455266,-500.0,0.00027671,2]
[354937304,1740833455277,-968.53,0.00027671,2]
[354937305,1740833455286,-500.0,0.00027671,2]
[354937306,1740833455295,-500.0,0.00027671,2]
[354937307,1740833455305,-500.0,0.00027671,2]
[354937308,1740833455316,-500.0,0.00027671,2]
[354937309,1740833455326,-500.0,0.00027671,2]
[354937310,1740833455335,-500.0,0.00027671,2]
[354937311,1740833455346,-500.0,0.00027671,2]
[354937312,1740833455355,-520.64237091,0.00027671,2]
[354937313,1740833455365,-501.97364501,0.00027671,2]
[354937314,1740833455375,-500.0,0.00027671,2]
[354937315,1740833455384,-778.74,0.00027671,2]
[354937316,1740833455393,-500.0,0.00027671,2]
[354937317,1740833455403,-500.0,0.00027671,2]
[354937318,1740833455412,-500.0,0.00027671,2]
[354937319,1740833455421,-500.0,0.00027671,2]
[354937320,1740833455431,-500.0,0.00027671,2]
[354937321,1740833455440,-505.38709995,0.00027671,2]
[354937322,1740833455449,-946.71,0.00027671,2]
[354937323,1740833455459,-500.0,0.00027671,2]
[354937324,1740833455468,-500.0,0.00027671,2]
[354937325,1740833455478,-500.0,0.00027671,2]
[354937326,1740833455487,-1953.53,0.00027671,2]
[354937327,1740833455496,-500.0,0.00027671,2]
[354937328,1740833455506,-500.0,0.00027671,2]
[354937329,1740833455515,-505.95058796,0.00027671,2]
[354937330,1740833455525,-500.0,0.00027671,2]
[354937331,1740833455534,-534.62,0.00027671,2]
[354937332,1740833455544,-500.0,0.00027671,2]
[354937333,1740833455553,-506.78234693,0.00027671,2]
[354937334,1740833455562,-500.0,0.00027671,2]
[354937335,1740833455572,-596.97,0.00027671,2]
[354937336,1740833455582,-500.0,0.00027671,2]
[354937337,1740833455591,-500.0,0.00027671,2]
[354937338,1740833455601,-1805.04,0.00027671,2]
[354937339,1740833455610,-500.0,0.00027671,2]
[354937340,1740833455620,-1359.44,0.00027671,2]
[354937341,1740833455629,-525.24026944,0.00027671,2]
[354937342,1740833455638,-500.0,0.00027671,2]
[354937343,1740833455648,-500.0,0.00027671,2]
[354937344,1740833455657,-500.0,0.00027671,2]
[354937345,1740833455666,-500.0,0.00027671,2]
[354937346,1740833455675,-500.0,0.00027671,2]
[354937347,1740833455684,-1561.8,0.00027671,2]
[354937348,1740833455694,-1386.95,0.00027671,2]
[354937349,1740833455703,-500.0,0.00027671,2]
[354937350,1740833455713,-500.0,0.00027671,2]
[354937351,1740833455722,-948.59,0.00027671,2]
[354937352,1740833455731,-500.0,0.00027671,2]
[354937353,1740833455741,-500.0,0.00027671,2]
[354937354,1740833455750,-500.0,0.00027671,2]
[354937355,1740833455759,-500.0,0.00027671,2]
[354937356,1740833455769,-605.84,0.00027671,2]
[354937357,1740833455778,-1142.88,0.00027671,2]
[354937358,1740833455787,-500.0,0.00027671,2]
[354937359,1740833455797,-500.0,0.00027671,2]
[354937360,1740833455806,-500.0,0.00027671,2]
[354937361,1740833455815,-500.0,0.00027671,2]
[354937362,1740833455825,-967.24,0.00027671,2]
[354937363,1740833455835,-500.0,0.00027671,2]
[354937364,1740833455844,-500.0,0.00027671,2]
[354937365,1740833455854,-500.0,0.00027671,2]
[354937366,1740833455863,-500.0,0.00027671,2]
[354937367,1740833455873,-1252.34,0.00027671,2]
[354937368,1740833455882,-510.66995038,0.00027671,2]
[354937369,1740833455892,-500.0,0.00027671,2]
[354937370,1740833455902,-500.0,0.00027671,2]
[354937371,1740833455911,-500.0,0.00027671,2]
[354937372,1740833455920,-885.92,0.00027671,2]
[354937373,1740833455930,-500.0,0.00027671,2]
[354937374,1740833455939,-1282.96,0.00027671,2]
[354937375,1740833455949,-500.0,0.00027671,2]
[354937376,1740833455958,-500.0,0.00027671,2]
[354937377,1740833455967,-508.21566199,0.00027671,2]
[354937378,1740833455976,-508.87004952,0.00027671,2]
[354937379,1740833455987,-2011.69,0.00027671,2]
[354937380,1740833455997,-1198.93,0.00027671,2]
[354937381,1740833456006,-500.0,0.00027671,2]
[354937382,1740833456016,-1767.73,0.00027671,2]
[354937383,1740833456026,-500.0,0.00027671,2]
[354937384,1740833456038,-500.0,0.00027671,2]
[354937385,1740833456048,-500.0,0.00027671,2]
[354937386,1740833456058,-1987.47,0.00027671,2]
[354937387,1740833456067,-500.0,0.00027671,2]
[354937388,1740833456241,-500.0,0.00027671,2]
[354937389,1740833456251,-505.37559308,0.00027671,2]
[354937390,1740833456260,-563.24565424,0.00027671,2]
[354937391,1740833456270,-500.0,0.00027671,2]
[354937392,1740833456280,-500.0,0.00027671,2]
[354937393,1740833456289,-500.0,0.00027671,2]
[354937394,1740833456299,-500.0,0.00027671,2]